bitfinex-derivatives/quotes_SOLF0:USTF0_20241105
["timestamp","ask_amount","ask_price","bid_price","bid_amount"]
[1730769528783,15.1884437,157.96,157.92,1.0]
[1730769529185,3.1676,157.94,157.92,1.0]
[1730769529981,3.1673,157.95,157.92,4.1678]
[1730769530370,15.1884437,157.96,157.92,1.0]
[1730769531184,3.1676,157.94,157.92,1.0]
[1730769534482,3.1677,157.93,157.92,1.0]
[1730769535277,18.3561437,157.93,157.92,1.0]
[1730769535778,3.1685,157.89,157.88,1.0]
[1730769535984,18.3569437,157.89,157.88,1.0]
[1730769541782,15.1884437,157.89,157.82,2.7365]
[1730769541983,3.1694,157.85,157.82,2.7365]
[1730769542186,15.1884437,157.87,157.82,2.7365]
[1730769542588,15.1884437,157.93,157.78,15.1884437]
[1730769542589,15.1884437,157.85,157.78,5.4]
[1730769543086,3.1698,157.83,157.78,8.5706]
[1730769543283,15.1884437,157.85,157.78,5.4]
[1730769543791,3.1697,157.83,157.78,5.4]
[1730769543981,3.1697,157.83,157.78,8.5705]
[1730769544783,3.1697,157.83,157.79,3.1704]
[1730769545385,18.3577437,157.85,157.8,3.1701]
[1730769546087,3.1689,157.87,157.8,15.1884437]
[1730769546279,15.1884437,157.89,157.8,15.1884437]
[1730769546486,3.1692,157.86,157.81,3.1699]
[1730769546789,3.1692,157.86,157.8,15.1884437]
[1730769546989,3.1689,157.87,157.83,3.1695]
[1730769547491,15.1884437,157.89,157.8,15.1884437]
[1730769547989,3.1689,157.87,157.82,3.1697]
[1730769548187,15.1884437,157.89,157.8,15.1884437]
[1730769549788,3.1685,157.89,157.85,3.1692]
[1730769549993,15.1884437,157.91,157.84,5.4]
[1730769550189,15.1884437,157.91,157.85,2.7021]
[1730769550486,3.1684,157.9,157.86,3.1689]
[1730769550690,3.1684,157.9,157.85,2.7021]
[1730769551080,3.1684,157.9,157.85,5.8712]
[1730769551486,18.3565437,157.91,157.85,2.7021]
[1730769551682,15.1884437,157.93,157.87,3.1687]
[1730769552286,15.1884437,157.93,157.88,3.1685]
[1730769553083,15.1884437,157.93,157.85,2.7021]
[1730769553690,3.1675,157.94,157.9,3.1681]
[1730769553889,3.1675,157.94,157.9,8.5681]
[1730769554089,15.1884437,157.95,157.9,5.4]
[1730769554288,8.63760781,158.32,157.9,5.4]
[1730769554289,15.1884437,157.97,157.9,5.4]
[1730769554488,15.1884437,157.99,157.91,1.3154]
[1730769555695,15.1884437,157.97,157.92,1.3893]
[1730769555897,3.1674,157.95,157.92,1.3893]
[1730769556085,15.1884437,157.95,157.92,1.3893]
[1730769556288,3.1676,157.94,157.89,5.1]
[1730769556486,15.1884437,157.93,157.89,5.1]
[1730769556792,3.1682,157.91,157.89,5.1]
[1730769558492,3.1684,157.9,157.86,6.524]
[1730769559401,15.1884437,157.91,157.86,6.524]
[1730769559692,3.1686,157.89,157.86,6.524]
[1730769560294,3.1683,157.9,157.86,9.693]
[1730769560989,3.1683,157.9,157.86,4.593]
[1730769561296,3.1683,157.9,157.86,9.693]
[1730769562395,15.1884437,157.93,157.86,9.693]
[1730769562703,3.1681,157.91,157.86,9.693]
[1730769563202,3.1679,157.92,157.86,6.524]
[1730769563591,3.1679,157.92,157.87,3.1688]
[1730769563790,3.1681,157.91,157.87,3.1688]
[1730769564191,15.1884437,157.93,157.87,3.1688]
[1730769564393,3.1677,157.93,157.86,6.524]
[1730769565091,3.1677,157.93,157.89,3.1684]
[1730769565597,3.168,157.92,157.88,3.1686]
[1730769565799,15.1884437,157.94,157.86,6.524]
[1730769566495,3.1679,157.92,157.87,3.1689]
[1730769567001,15.1884437,157.94,157.87,3.1689]
[1730769568402,3.1681,157.91,157.87,3.1689]
[1730769568606,15.1884437,157.94,157.86,6.524]
[1730769568810,3.1679,157.92,157.88,3.1685]
[1730769569008,15.1884437,157.94,157.86,6.524]
[1730769569302,3.1678,157.93,157.88,3.1686]
[1730769569500,15.1884437,157.94,157.86,6.524]
[1730769570002,15.1884437,157.92,157.82,15.1884437]
[1730769570203,15.1884437,157.87,157.8,9.0926]
[1730769570602,3.1696,157.84,157.8,9.0926]
[1730769571001,15.1884437,157.85,157.8,3.9926]
[1730769571308,3.17,157.82,157.8,1.3567]
[1730769571701,3.1699,157.83,157.8,1.3567]
[1730769577707,15.1884437,157.85,157.8,1.3567]
[1730769577913,15.1884437,157.87,157.8,1.3567]
[1730769578515,3.1691,157.86,157.8,1.3567]
[1730769578910,3.1691,157.86,157.81,3.1699]
[1730769579610,3.1693,157.85,157.81,3.1699]
[1730769581315,15.1884437,157.87,157.79,1.0]
[1730769581520,3.1701,157.81,157.79,1.0]
[1730769581913,15.1884437,157.91,157.8,15.1884437]
[1730769582212,15.1884437,157.91,157.8,16.5042437]
[1730769582616,15.1884437,157.91,157.86,3.169]
[1730769582815,15.1884437,157.91,157.87,4.82]
[1730769583217,3.1683,157.9,157.87,4.82]
[1730769583714,9.73174001,157.92,157.88,3.1686]
[1730769583916,9.73174001,157.93,157.88,9.73174001]
[1730769584110,9.73174001,157.95,157.89,9.73174001]
[1730769584516,3.1676,157.94,157.89,12.90014001]
[1730769584913,3.168,157.92,157.88,9.73174001]
[1730769585113,12.89974001,157.92,157.87,9.3046]
[1730769585318,3.168,157.92,157.87,9.3046]
[1730769586125,1.3625,157.96,157.87,6.1358]
[1730769586126,15.20428826,157.96,157.87,6.1358]
[1730769586312,15.20428826,157.98,157.88,15.20428826]
[1730769587226,15.20428826,157.98,157.88,17.92558826]
[1730769587427,3.1672,157.96,157.91,3.1679]
[1730769587617,3.1672,157.96,157.92,4.82]
[1730769588022,15.20428826,158.0,157.92,4.82]
[1730769588328,16.50938826,158.03,157.92,20.02428826]
[1730769588523,3.1661,158.01,157.96,3.167]
[1730769588716,3.1661,158.01,157.97,4.52]
[1730769589324,15.20428826,158.03,157.97,4.52]
[1730769589524,3.1659,158.02,157.97,4.52]
[1730769590625,3.1663,158.0,157.97,4.52]
[1730769591029,15.20428826,158.25,157.99,36.74137652]
[1730769591331,21.52248826,158.36,157.99,36.74137652]
[1730769591332,20.04428826,158.31,158.21,15.20428826]
[1730769591528,3.161,158.27,158.21,15.20428826]
[1730769591834,4.84,158.3,158.21,15.20428826]
[1730769592137,5.24,158.29,158.21,15.20428826]
[1730769593021,5.24,158.28,158.23,15.20428826]
[1730769593425,5.24,158.27,158.23,15.20428826]
[1730769593823,3.1603,158.3,158.23,15.20428826]
[1730769594328,5.24,158.29,158.23,15.20428826]
[1730769595425,1.3975,158.33,158.22,24.27218719]
[1730769595734,24.67548719,158.36,158.22,24.27218719]
[1730769595735,3.1601,158.31,158.22,24.27218719]
[1730769596125,5.24,158.32,158.22,24.27218719]
[1730769596327,5.24,158.32,158.23,3.1616]
[1730769596627,5.24,158.31,158.24,24.27218719]
[1730769596930,5.24,158.32,158.24,24.27218719]
[1730769597523,5.24,158.32,158.24,27.43358719]
[1730769598024,5.24,158.31,158.24,27.43358719]
[1730769598225,5.24,158.31,158.22,24.27218719]
[1730769598731,8.4003,158.3,158.22,24.27218719]
[1730769598928,5.24,158.29,158.22,24.27218719]
[1730769599233,5.24,158.29,158.24,24.27218719]
[1730769600326,25.97928719,158.36,158.24,24.27218719]
[1730769600522,5.24,158.35,158.22,24.27218719]
[1730769601032,3.1607,158.28,158.22,24.27218719]
[1730769601239,5.24,158.29,158.22,24.27218719]
[1730769602038,5.24,158.29,158.19,24.27218719]
[1730769603331,3.1612,158.26,158.19,27.43458719]
[1730769604042,3.1614,158.25,158.18,3.1626]
[1730769604341,3.1614,158.25,158.17,24.27218719]
[1730769605336,3.1614,158.25,158.18,3.1626]
[1730769607133,5.24,158.29,158.17,24.27218719]
[1730769607334,24.27218719,158.23,158.13,4.0305]
[1730769607532,5.24,158.22,158.13,2.6655]
[1730769607731,3.163,158.17,158.13,1.3357]
[1730769607926,24.27218719,158.21,158.08,2.7521]
[1730769608333,3.1628,158.18,158.08,2.7521]
[1730769608535,24.27218719,158.21,158.08,27.02428719]
[1730769609736,3.1628,158.18,158.1,3.1642]
[1730769609934,24.27218719,158.21,158.1,3.1642]
[1730769610840,24.27218719,158.21,158.08,27.02428719]
[1730769611240,3.1632,158.16,158.08,27.02428719]
[1730769611542,4.94,158.16,158.08,27.02428719]
[1730769612134,3.1636,158.14,158.08,30.18878719]
[1730769612433,4.94,158.16,158.08,30.18878719]
[1730769612634,3.1635,158.14,158.08,30.18878719]
[1730769613332,3.1636,158.13,158.08,30.18878719]
[1730769613530,4.94,158.16,158.06,24.27218719]
[1730769613740,29.21218719,158.16,158.05,1.411]
[1730769613935,3.1648,158.08,158.03,25.68898719]
[1730769614239,3.1648,158.08,157.98,6.3205]
[1730769614240,4.94,158.1,158.0,24.27218719]
[1730769614435,3.165,158.07,158.0,24.27218719]
[1730769614636,4.94,158.09,158.0,24.27218719]
[1730769615244,4.94,158.09,157.99,1.366]
[1730769616435,3.1658,158.03,157.99,1.366]
[1730769616636,24.27218719,158.1,157.99,1.366]
[1730769616833,4.94,158.09,157.99,1.366]
[1730769617035,3.1654,158.05,157.99,4.5324]
[1730769617335,4.94,158.09,157.99,1.366]
[1730769617943,3.165,158.06,157.99,1.366]
[1730769618139,4.94,158.09,157.99,1.366]
[1730769618345,1.2957,158.12,157.99,1.366]
[1730769618544,3.1648,158.08,158.0,24.27218719]
[1730769618738,4.94,158.11,158.0,25.57058719]
[1730769619143,3.1649,158.07,158.01,3.1659]
[1730769619337,4.94,158.11,158.0,25.57058719]
[1730769619546,4.94,158.11,158.0,1.2984]
[1730769620443,3.165,158.07,158.01,3.166]
[1730769620641,4.94,158.1,158.0,1.2984]
[1730769620942,3.1657,158.03,158.0,1.2984]
[1730769621146,4.94,158.1,158.0,1.2984]
[1730769621546,3.1648,158.07,158.0,1.2984]
[1730769621746,29.21218719,158.1,157.99,2.7002]
[1730769622449,3.1658,158.03,157.99,2.7002]
[1730769623240,3.1655,158.04,157.99,2.7002]
[1730769623636,3.1655,158.04,157.99,5.8666]
[1730769626051,4.94,158.07,157.99,5.8666]
[1730769626052,4.94,158.07,157.99,1.366]
[1730769626545,6.3671,158.07,157.99,1.366]
[1730769626750,3.1653,158.05,157.99,1.366]
[1730769626949,6.3671,158.07,157.95,1.2946]
[1730769627756,6.3671,158.07,157.95,4.4618]
[1730769627953,6.3671,158.07,157.96,24.27218719]
[1730769628352,4.94,158.06,157.97,3.1668]
[1730769628862,4.94,158.06,157.96,24.27218719]
[1730769629358,3.1656,158.03,157.96,27.43918719]
[1730769629551,4.94,158.06,157.96,27.43918719]
[1730769630556,4.94,158.06,157.97,3.1668]
[1730769630950,3.166,158.02,157.97,3.1668]
[1730769632253,4.64,158.05,157.98,24.27218719]
[1730769632454,24.27218719,158.1,157.99,1.3457]
[1730769632455,4.64,158.06,157.99,1.3457]
[1730769632662,3.1657,158.03,158.0,1.3433]
[1730769632959,4.64,158.06,157.95,1.2946]
[1730769634261,3.166,158.02,157.97,3.1668]
[1730769635058,4.64,158.06,157.95,1.2946]
[1730769635365,15.20808905,158.03,157.95,1.2946]
[1730769636255,3.1667,157.98,157.95,1.2946]
[1730769636861,3.1665,157.99,157.95,1.2946]
[1730769638765,3.1665,157.99,157.95,16.50268905]
[1730769639272,3.1664,158.0,157.95,16.50268905]
[1730769639465,4.64,158.01,157.95,16.50268905]
[1730769639669,4.64,158.01,157.92,2.7201]
[1730769639974,15.20808905,157.99,157.92,2.7201]
[1730769640370,3.1672,157.96,157.92,2.7201]
[1730769641867,3.1668,157.98,157.92,2.7201]
[1730769642063,19.84808905,158.01,157.92,2.7201]
[1730769643470,3.1669,157.97,157.92,2.7201]
[1730769643665,15.20808905,157.99,157.92,2.7201]
[1730769644173,3.167,157.97,157.92,2.7201]
[1730769645277,3.1671,157.96,157.92,2.7201]
[1730769647772,4.66,157.99,157.92,2.7201]
[1730769647979,3.167,157.97,157.92,2.7201]
[1730769648490,3.1679,157.92,157.88,16.52648905]
[1730769649281,3.1679,157.92,157.88,1.3184]
[1730769649482,15.20808905,157.97,157.87,1.3248]
[1730769649685,3.168,157.92,157.87,1.3248]
[1730769650687,4.66,157.94,157.87,1.3248]
[1730769650881,15.20808905,157.93,157.87,1.3248]
[1730769651290,3.1687,157.88,157.85,1.3354]
[1730769651485,15.20808905,157.93,157.85,1.3354]
[1730769652589,3.1686,157.89,157.85,1.3354]
[1730769652982,15.20808905,157.93,157.85,1.3354]
[1730769653184,3.1686,157.89,157.84,1.3389]
[1730769653380,15.20808905,157.93,157.84,1.3389]
[1730769653590,3.1688,157.88,157.84,1.3389]
[1730769656294,4.36,157.92,157.84,1.3389]
[1730769656881,3.1687,157.88,157.84,1.3389]
[1730769657085,3.1687,157.88,157.83,1.3166]
[1730769657592,3.1687,157.88,157.83,4.4861]
[1730769658188,3.1689,157.87,157.83,1.3166]
[1730769658395,15.20808905,157.89,157.79,16.20808905]
[1730769658894,3.1694,157.85,157.8,3.1702]
[1730769659591,3.1695,157.84,157.8,3.1702]
[1730769659892,19.58808905,157.87,157.79,1.0]
[1730769660291,3.1698,157.83,157.79,1.0]
[1730769660593,19.58808905,157.87,157.8,3.1701]
[1730769660794,3.1695,157.84,157.79,1.0]
[1730769660995,3.1695,157.84,157.79,4.1703]
[1730769661183,19.58808905,157.87,157.79,4.1703]
[1730769661388,3.1693,157.85,157.79,4.1703]
[1730769661685,4.38,157.86,157.79,1.0]
[1730769661892,3.1702,157.81,157.79,1.0]
[1730769662487,3.1699,157.82,157.79,1.0]
[1730769663793,15.20808905,157.85,157.79,1.0]
[1730769663986,4.38,157.86,157.79,1.0]
[1730769664396,15.20808905,157.89,157.81,3.17]
[1730769664590,4.38,157.87,157.79,16.20808905]
[1730769665093,3.1693,157.85,157.8,3.1701]
[1730769665997,4.38,157.87,157.8,3.1701]
[1730769666303,3.1695,157.84,157.8,3.1701]
[1730769666902,3.1691,157.86,157.82,3.1698]
[1730769667101,4.38,157.88,157.79,16.20808905]
[1730769668001,3.1696,157.84,157.79,19.37848905]
[1730769668505,3.1697,157.83,157.79,19.37848905]
[1730769669099,3.1699,157.82,157.79,1.0]
[1730769669603,3.1698,157.83,157.79,1.0]
[1730769670309,3.1698,157.83,157.79,4.1704]
[1730769670599,3.1693,157.85,157.81,3.1699]
[1730769671508,4.38,157.88,157.82,3.1698]
[1730769672411,4.38,157.88,157.81,3.17]
[1730769672602,4.38,157.88,157.79,16.20808905]
[1730769672807,15.20808905,157.87,157.79,1.0]
[1730769673015,3.1699,157.82,157.79,1.0]
[1730769675703,15.20808905,157.87,157.79,1.0]
[1730769675903,4.38,157.88,157.81,3.17]
[1730769676094,15.20808905,157.89,157.81,3.17]
[1730769676296,3.1692,157.86,157.83,3.1696]
[1730769676704,3.1692,157.86,157.8,1.4101]
[1730769676901,3.1692,157.86,157.82,3.1698]
[1730769677404,3.1693,157.85,157.82,3.1698]
[1730769678400,3.1691,157.86,157.82,3.1698]
[1730769680902,3.169,157.87,157.82,3.1698]
[1730769681503,15.20808905,157.89,157.8,1.4101]
[1730769682107,15.20808905,157.89,157.84,3.1693]
[1730769682710,15.20808905,157.91,157.81,15.20808905]
[1730769683214,3.1684,157.9,157.83,15.20808905]
[1730769683419,3.1684,157.9,157.86,3.1689]
[1730769684207,16.61308905,157.94,157.83,16.52848905]
[1730769684412,15.20808905,157.94,157.85,15.20808905]
[1730769684605,15.20808905,157.94,157.83,16.52848905]
[1730769685108,3.1682,157.91,157.83,16.52848905]
[1730769685613,3.1681,157.91,157.86,3.1689]
[1730769686115,15.20808905,157.94,157.86,3.1689]
[1730769686313,15.20808905,157.92,157.83,1.3204]
[1730769687317,5.3855,157.95,157.83,1.3204]
[1730769687318,15.20808905,157.89,157.83,1.3204]
[1730769687609,15.20808905,157.89,157.82,1.4235]
[1730769689406,15.20808905,157.89,157.82,4.5934]
[1730769690511,3.1691,157.86,157.82,4.5934]
[1730769692311,3.1694,157.85,157.82,1.4235]
[1730769693610,15.20808905,157.89,157.82,1.4235]
[1730769693811,15.20808905,157.87,157.8,1.3342]
[1730769694011,15.20808905,157.87,157.79,1.0]
[1730769694418,15.20808905,157.85,157.79,1.0]
[1730769694807,19.28808905,157.85,157.79,1.0]
[1730769695007,3.1703,157.8,157.79,1.0]
[1730769695317,15.20808905,157.83,157.79,1.0]
[1730769696917,3.1702,157.81,157.79,1.0]
[1730769697414,15.20808905,157.83,157.79,1.0]
[1730769698219,3.1701,157.81,157.79,1.0]
[1730769698616,15.20808905,157.83,157.79,1.0]
[1730769698816,3.1703,157.8,157.79,1.0]
[1730769700718,4.1,157.84,157.79,1.0]
[1730769701426,15.20808905,157.85,157.79,1.0]
[1730769702217,3.1698,157.83,157.79,1.0]
[1730769702715,3.82,157.86,157.79,1.0]
[1730769703119,3.1696,157.84,157.79,4.1704]
[1730769703822,3.1697,157.83,157.79,4.1704]
[1730769704418,3.1697,157.83,157.79,1.0]
[1730769706320,3.1697,157.83,157.79,4.1704]
[1730769707325,3.1699,157.82,157.79,1.0]
[1730769709228,3.1699,157.82,157.79,4.1705]
[1730769709527,3.1703,157.8,157.79,1.0]
[1730769711140,15.20808905,157.81,157.73,1.3501]
[1730769711341,16.53648905,157.81,157.73,1.3501]
[1730769711638,3.1718,157.73,157.66,15.20808905]
[1730769712029,3.82,157.75,157.66,18.38108905]
[1730769712229,3.172,157.72,157.66,18.38108905]
[1730769712434,15.20808905,157.74,157.64,15.20808905]
[1730769712739,3.1722,157.71,157.64,15.20808905]
[1730769713135,15.20808905,157.74,157.64,15.20808905]
[1730769713435,3.1721,157.71,157.66,3.173]
[1730769713837,15.20808905,157.74,157.66,3.173]
[1730769714039,3.1723,157.7,157.66,3.173]
[1730769715036,3.1721,157.71,157.65,3.1731]
[1730769715234,15.20808905,157.74,157.64,15.20808905]
[1730769715436,3.82,157.73,157.64,15.20808905]
[1730769715634,3.1724,157.7,157.66,3.1729]
[1730769716437,3.82,157.73,157.64,15.20808905]
[1730769718035,3.1724,157.7,157.66,3.173]
[1730769718240,15.20808905,157.76,157.66,15.20808905]
[1730769718541,3.82,157.75,157.69,3.1723]
[1730769719233,3.82,157.75,157.66,15.20808905]
[1730769719234,3.1719,157.73,157.66,15.20808905]
[1730769719437,3.82,157.75,157.68,3.1725]
[1730769719637,3.82,157.75,157.66,15.20808905]
[1730769720042,3.82,157.75,157.68,3.1727]
[1730769721040,3.1717,157.73,157.68,3.1727]
[1730769721237,3.82,157.75,157.67,3.1728]
[1730769721441,3.82,157.75,157.66,15.20808905]
[1730769721747,3.1719,157.73,157.68,3.1727]
[1730769722347,3.1715,157.74,157.69,3.1723]
[1730769722748,3.82,157.75,157.69,3.1723]
[1730769723050,3.1715,157.74,157.69,3.1723]
[1730769723453,3.1715,157.74,157.69,12.92383276]
[1730769723643,3.1717,157.73,157.69,9.75153276]
[1730769724445,9.75153276,157.76,157.71,9.75153276]
[1730769724655,9.75153276,157.78,157.72,9.75153276]
[1730769725146,9.75153276,157.77,157.71,12.92353276]
[1730769725349,3.82,157.79,157.69,9.75153276]
[1730769725643,9.75153276,157.75,157.69,9.75153276]
[1730769727140,12.92283276,157.75,157.7,3.1722]
[1730769728844,12.92283276,157.75,157.71,3.172]
[1730769729545,9.75153276,157.77,157.72,3.1717]
[1730769729748,9.75153276,157.75,157.7,9.75153276]
[1730769729947,9.75153276,157.75,157.65,3.82]
[1730769729948,3.172,157.72,157.68,12.92403276]
[1730769730942,3.1723,157.7,157.66,12.92453276]
[1730769731544,9.75153276,157.72,157.66,12.92453276]
[1730769731742,9.75153276,157.72,157.67,3.1728]
[1730769732146,3.1721,157.71,157.67,3.1728]
[1730769732355,9.75153276,157.74,157.68,12.92403276]
[1730769732546,9.75153276,157.74,157.68,9.75153276]
[1730769733053,9.75153276,157.74,157.68,12.92413276]
[1730769733254,3.172,157.72,157.68,12.92413276]
[1730769733749,9.75153276,157.72,157.66,9.75153276]
[1730769734448,9.75153276,157.7,157.65,12.92463276]
[1730769734953,3.1725,157.69,157.65,12.92463276]
[1730769735351,9.75153276,157.7,157.65,12.92463276]
[1730769735749,9.75153276,157.72,157.66,9.75153276]
[1730769735955,13.39153276,157.73,157.68,9.75153276]
[1730769736252,9.75153276,157.72,157.67,9.75153276]
[1730769736945,3.1724,157.7,157.67,9.75153276]
[1730769737148,3.1724,157.7,157.66,3.1729]
[1730769737543,3.1724,157.7,157.67,12.92433276]
[1730769737952,3.1724,157.7,157.67,9.75153276]
[1730769739261,9.75153276,157.72,157.67,12.92433276]
[1730769739450,9.75153276,157.7,157.64,12.53023276]
[1730769739651,3.64,157.74,157.64,12.53023276]
[1730769739652,9.75153276,157.69,157.64,12.53023276]
[1730769740157,3.1727,157.68,157.64,15.70363276]
[1730769740359,9.75153276,157.7,157.64,15.70363276]
[1730769740858,3.1726,157.69,157.64,15.70363276]
[1730769741547,3.1727,157.68,157.64,15.70363276]
[1730769741951,9.75153276,157.7,157.65,12.92473276]
[1730769742254,12.92393276,157.7,157.65,12.92473276]
[1730769742858,12.92353276,157.72,157.67,12.92423276]
[1730769743159,9.75153276,157.72,157.67,9.75153276]
[1730769743859,3.1722,157.71,157.67,9.75153276]
[1730769744453,9.75153276,157.72,157.65,9.75153276]
[1730769744659,3.1724,157.7,157.65,12.92473276]
[1730769745255,3.1726,157.69,157.65,12.92473276]
[1730769746562,3.1721,157.71,157.67,12.92443276]
[1730769747061,3.1723,157.7,157.67,9.75153276]
[1730769747458,9.75153276,157.75,157.68,9.75153276]
[1730769747653,3.1719,157.72,157.68,12.92413276]
[1730769748462,12.92333276,157.73,157.69,3.1724]
[1730769748958,9.75153276,157.75,157.69,9.75153276]
[1730769749166,3.1716,157.74,157.69,9.75153276]
[1730769749662,12.92293276,157.75,157.72,3.1718]
[1730769749963,12.92293276,157.75,157.69,9.75153276]
[1730769750160,3.1707,157.78,157.73,9.75153276]
[1730769750563,3.1707,157.78,157.74,1.2912]
[1730769750867,3.1705,157.79,157.75,12.92263276]
[1730769751069,12.92203276,157.79,157.75,3.1711]
[1730769751256,9.75153276,157.79,157.73,9.75153276]
[1730769751455,3.64,157.83,157.7,9.75153276]
[1730769751456,9.75153276,157.76,157.7,9.75153276]
[1730769752064,3.1715,157.74,157.7,9.75153276]
[1730769752259,9.75153276,157.74,157.69,9.75153276]
[1730769752466,3.1719,157.72,157.69,9.75153276]
[1730769752661,9.75153276,157.74,157.69,9.75153276]
[1730769753066,3.1718,157.73,157.69,12.92383276]
[1730769754571,3.1719,157.72,157.69,12.92383276]
[1730769755067,9.75153276,157.74,157.69,9.75153276]
[1730769755669,3.172,157.72,157.69,12.92403276]
[1730769757168,3.1717,157.73,157.69,12.92403276]
[1730769759572,3.1719,157.72,157.69,12.92403276]
[1730769759773,9.75153276,157.74,157.69,12.92403276]
[1730769760475,3.1718,157.73,157.69,12.92403276]
[1730769761663,9.75153276,157.74,157.67,2.6992]
[1730769761871,9.75153276,157.73,157.67,15.62343276]
[1730769762068,9.75153276,157.73,157.67,5.8719]
[1730769762268,3.1722,157.71,157.67,5.8719]
[1730769763270,3.1722,157.71,157.68,3.1727]
[1730769764477,12.92343276,157.73,157.69,3.1724]
[1730769764875,3.1719,157.73,157.69,3.1724]
[1730769765275,9.75153276,157.74,157.69,3.1724]
[1730769765475,3.1719,157.72,157.69,3.1724]
[1730769768375,3.1718,157.73,157.7,3.1721]
[1730769769975,12.92313276,157.74,157.7,3.1721]
[1730769771474,9.75153276,157.74,157.72,3.1717]
[1730769771678,12.92263276,157.76,157.72,3.1717]
[1730769772584,9.75153276,157.76,157.7,13.39153276]
[1730769773080,9.75153276,157.76,157.71,9.75153276]
[1730769773475,9.75153276,157.76,157.73,3.1717]
[1730769774178,12.92253276,157.77,157.73,3.1717]
[1730769774575,12.92253276,157.77,157.71,11.13543276]
[1730769774880,12.92253276,157.77,157.73,3.1715]
[1730769775077,9.75153276,157.79,157.74,9.75153276]
[1730769775280,9.75153276,157.8,157.76,3.1709]
[1730769775786,9.75153276,157.8,157.75,3.1712]
[1730769776276,3.1705,157.79,157.74,9.75153276]
[1730769776477,3.1705,157.79,157.75,3.1712]
[1730769777878,12.92203276,157.79,157.75,3.1712]
[1730769778074,5.0132,157.84,157.72,9.75153276]
[1730769778075,9.75153276,157.77,157.72,9.75153276]
[1730769778280,12.92263276,157.76,157.73,3.1715]
[1730769779079,3.1714,157.75,157.72,12.92333276]
[1730769779481,9.75153276,157.76,157.71,14.77543276]
[1730769779876,3.1715,157.74,157.71,17.94743276]
[1730769780079,9.75153276,157.75,157.69,13.39153276]
[1730769780280,3.1721,157.71,157.68,12.92413276]
[1730769780479,3.1721,157.71,157.68,16.56413276]
[1730769780979,3.172,157.72,157.69,3.1725]
[1730769781184,9.75153276,157.72,157.67,2.6992]
[1730769781384,9.75153276,157.72,157.67,6.3392]
[1730769781582,9.75153276,157.72,157.67,4.9312]
[1730769781888,9.75153276,157.71,157.67,4.9312]
[1730769782489,3.1723,157.7,157.67,4.9312]
[1730769782690,3.1723,157.7,157.67,8.104]
[1730769784089,9.75153276,157.75,157.69,9.75153276]
[1730769784489,3.1715,157.74,157.69,9.75153276]
[1730769784697,3.1715,157.74,157.7,9.75153276]
[1730769785887,3.1715,157.74,157.7,12.92373276]
[1730769786592,12.92283276,157.75,157.7,9.75153276]
[1730769787187,3.1715,157.74,157.7,12.92373276]
[1730769787382,9.75153276,157.75,157.7,9.75153276]
[1730769788382,12.92283276,157.75,157.71,3.1721]
[1730769788891,12.92283276,157.75,157.67,4.9312]
[1730769788892,9.75153276,157.75,157.69,9.75153276]
[1730769789306,3.1715,157.74,157.7,3.1721]
[1730769789593,9.75153276,157.75,157.69,9.75153276]
[1730769789994,3.1716,157.74,157.69,12.92383276]
[1730769790294,3.1716,157.74,157.69,9.75153276]
[1730769790895,3.1716,157.74,157.7,3.1721]
[1730769792192,3.1716,157.74,157.71,3.1721]
[1730769793889,9.75153276,157.77,157.74,3.1714]
[1730769794096,9.75153276,157.77,157.72,13.39153276]
[1730769794391,3.1712,157.76,157.72,16.56333276]
[1730769794594,9.75153276,157.77,157.72,13.39153276]
[1730769794986,3.1711,157.76,157.72,16.56343276]
[1730769795186,9.75153276,157.75,157.72,3.64]
[1730769795792,3.1716,157.74,157.72,3.64]
[1730769795984,9.75153276,157.74,157.69,3.64]